bitfinex/quotes_SOLUSD_20251118
["timestamp","ask_amount","ask_price","bid_price","bid_amount"]
[1763448265789,5.71,135.93,135.91,25.80278743]
[1763448266084,10.15,135.93,135.91,25.80278743]
[1763448266291,10.15,135.93,135.88,18.3981515]
[1763448266292,10.15,135.93,135.89,7.35873019]
[1763448266465,10.15,135.93,135.91,7.68182743]
[1763448267986,0.71,135.92,135.91,7.68182743]
[1763448268185,0.71,135.92,135.89,25.80278743]
[1763448268889,0.71,135.92,135.9,7.68182743]
[1763448269103,0.71,135.92,135.89,25.80278743]
[1763448269506,0.71,135.92,135.9,7.68182743]
[1763448269791,0.71,135.92,135.87,18.12096]
[1763448269996,7.68182743,135.91,135.86,7.68182743]
[1763448270196,7.68182743,135.9,135.84,7.68182743]
[1763448270398,7.68182743,135.88,135.83,7.68182743]
[1763448270565,7.35997644,135.87,135.82,7.68182743]
[1763448270764,15.75180387,135.87,135.78,7.36446773]
[1763448270977,8.39182743,135.86,135.81,7.68182743]
[1763448271266,4.44,135.85,135.77,7.77527333]
[1763448271476,4.44,135.85,135.78,10.19882769]
[1763448271671,4.44,135.85,135.81,18.12096]
[1763448271866,4.44,135.85,135.81,18.53096]
[1763448272094,5.15,135.85,135.81,18.12096]
[1763448272465,5.15,135.85,135.83,7.68182743]
[1763448272678,5.15,135.85,135.84,7.68182743]
[1763448273167,5.15,135.85,135.81,18.12096]
[1763448273370,5.15,135.85,135.83,7.68182743]
[1763448273570,5.15,135.85,135.84,7.68182743]
[1763448273765,4.44,135.85,135.84,7.68182743]
[1763448273984,4.44,135.88,135.84,25.80278743]
[1763448274268,5.15,135.88,135.87,7.68182743]
[1763448274473,4.44,135.88,135.86,7.68182743]
[1763448274692,5.15,135.88,135.87,7.68182743]
[1763448275279,5.15,135.88,135.85,7.68182743]
[1763448275484,0.71,135.87,135.85,7.68182743]
[1763448275778,0.71,135.87,135.8,7.36354903]
[1763448275971,0.71,135.87,135.83,7.68182743]
[1763448276801,8.07012508,135.87,135.83,13.33947555]
[1763448277097,0.71,135.87,135.85,13.33947555]
[1763448277469,4.44,135.88,135.86,13.33947555]
[1763448277679,0.71,135.87,135.86,13.33947555]
[1763448278072,4.44,135.88,135.86,13.33947555]
[1763448278273,4.44,135.88,135.87,13.33947555]
[1763448279372,5.0,135.93,135.91,9.78882769]
[1763448279567,5.0,135.93,135.92,23.12830324]
[1763448279791,4.59,135.93,135.92,23.86403013]
[1763448280297,4.59,135.93,135.92,41.24926324]
[1763448281397,4.59,135.93,135.92,31.46043555]
[1763448282374,4.59,135.93,135.92,17.88182356]
[1763448282591,4.59,135.93,135.92,31.22129911]
[1763448282790,0.2,135.94,135.93,27.90978769]
[1763448282991,0.2,135.95,135.93,23.12830324]
[1763448283297,0.2,135.96,135.95,7.35564545]
[1763448283480,0.2,135.96,135.95,20.695121]
[1763448284381,1e-08,135.96,135.95,30.48394869]
[1763448284996,0.2,135.97,135.95,30.48394869]
[1763448285203,0.2,135.97,135.96,14.07498599]
[1763448285376,0.2,135.97,135.96,21.43009043]
[1763448285706,0.2,135.97,135.96,31.46043555]
[1763448285887,0.2,135.97,135.96,48.60436768]
[1763448287388,0.2,135.97,135.96,31.46043555]
[1763448288490,0.2,135.97,135.96,38.81553999]
[1763448290187,0.2,135.97,135.96,31.46043555]
[1763448291177,0.2,135.97,135.96,38.81553999]
[1763448291378,0.92,135.97,135.92,8.09248999]
[1763448291580,0.92,135.97,135.95,13.33947555]
[1763448291803,0.92,135.97,135.96,13.33947555]
[1763448293202,0.92,135.97,135.95,13.33947555]
[1763448293402,0.72,135.96,135.94,13.33947555]
[1763448293586,5.16,135.96,135.95,13.33947555]
[1763448294087,5.16,135.96,135.94,13.33947555]
[1763448294288,0.72,135.95,135.94,18.12096]
[1763448294503,0.72,135.95,135.94,31.46043555]
[1763448296104,4.44,135.96,135.94,31.46043555]
[1763448296307,4.44,135.96,135.95,13.33947555]
[1763448296505,5.16,135.96,135.95,31.46043555]
[1763448296811,4.44,135.96,135.95,31.46043555]
[1763448297183,5.16,135.96,135.95,31.46043555]
[1763448297801,5.16,135.96,135.95,18.12096]
[1763448298007,4.44,135.96,135.95,31.46043555]
[1763448298200,5.16,135.96,135.95,31.46043555]
[1763448298405,4.44,135.96,135.95,31.46043555]
[1763448298603,5.16,135.96,135.95,31.46043555]
[1763448299189,4.44,135.96,135.95,31.46043555]
[1763448299598,5.16,135.96,135.95,31.46043555]
[1763448299800,5.16,135.96,135.93,13.33947555]
[1763448300005,0.72,135.95,135.92,13.33947555]
[1763448300208,0.72,135.95,135.93,13.33947555]
[1763448300387,0.72,135.95,135.86,9.78882769]
[1763448300591,21.41518002,135.95,135.9,13.33947555]
[1763448300808,13.33947555,135.94,135.89,13.33947555]
[1763448300988,14.05947555,135.94,135.89,13.33947555]
[1763448301314,4.44,135.96,135.93,13.33947555]
[1763448301315,5.16,135.96,135.93,13.33947555]
[1763448301487,0.2,135.97,135.95,31.46043555]
[1763448301686,0.2,135.97,135.96,13.33947555]
[1763448301913,0.92,135.97,135.96,13.33947555]
[1763448302292,0.2,135.97,135.96,20.69457999]
[1763448303515,0.2,135.97,135.96,31.21891812]
[1763448303826,0.2,135.97,135.96,48.60436768]
[1763448304027,0.92,135.97,135.9,9.78882769]
[1763448304212,5.16,135.96,135.95,31.46043555]
[1763448304415,5.16,135.96,135.95,18.12096]
[1763448304619,5.16,135.96,135.95,31.46043555]
[1763448304832,0.2,135.97,135.96,9.78882769]
[1763448305027,0.2,135.97,135.96,23.12830324]
[1763448305536,0.2,135.97,135.96,23.86381368]
[1763448306030,0.03,135.97,135.96,23.86381368]
[1763448306335,0.06,135.98,135.96,30.48340768]
[1763448306675,0.81,135.99,135.97,13.33947555]
[1763448306818,0.72,136.02,135.98,13.33947555]
[1763448307025,0.55,136.01,135.97,13.33947555]
[1763448307212,12.18891255,136.02,135.97,31.46043555]
[1763448308047,4.318,136.03,135.98,13.33947555]
[1763448308218,25.0089294,136.03,135.97,18.12096]
[1763448308535,25.0089294,136.03,135.98,13.33947555]
[1763448309208,14.05947555,136.02,135.92,63.0]
[1763448309419,14.05947555,136.02,135.97,13.33947555]
[1763448309617,0.72,136.01,135.98,13.33947555]
[1763448309820,0.72,136.01,135.97,13.33947555]
[1763448310339,8.07251633,136.01,135.97,13.33947555]
[1763448310744,4.318,136.03,136.0,13.33947555]
[1763448310923,4.318,136.03,136.02,13.33947555]
[1763448311124,5.038,136.03,136.02,13.33947555]
[1763448311445,5.038,136.03,135.97,9.78882769]
[1763448311738,5.038,136.03,136.01,13.33947555]
[1763448311945,0.2,136.06,136.02,13.33947555]
[1763448312135,0.2,136.06,136.05,31.46043555]
[1763448312438,0.2,136.06,136.05,18.12096]
[1763448312815,0.86,136.06,136.05,13.33947555]
[1763448313222,0.86,136.06,136.0,20.69225925]
[1763448313449,18.43947555,136.05,136.0,31.46043555]
[1763448313627,5.1,136.05,136.0,13.33947555]
[1763448313943,5.1,136.04,136.02,13.33947555]
[1763448314176,4.44,136.04,136.03,13.33947555]
[1763448314739,5.1,136.04,136.01,18.12096]
[1763448315048,0.66,136.03,136.02,13.33947555]
[1763448315226,5.1,136.04,136.02,13.33947555]
[1763448315428,5.1,136.04,136.01,18.12096]
[1763448315636,0.66,136.03,136.0,13.33947555]
[1763448316033,0.66,136.03,135.97,7.3545635]
[1763448316232,0.66,136.03,135.97,13.33947555]
[1763448316452,4.44,136.04,136.02,13.33947555]
[1763448316692,4.44,136.04,136.0,13.33947555]
[1763448316957,4.44,136.04,136.03,18.12096]
[1763448317123,4.44,136.04,136.03,13.33947555]
[1763448317325,4.44,136.04,136.03,76.33947555]
[1763448317530,0.2,136.06,136.03,76.33947555]
[1763448317831,0.2,136.06,136.05,13.33947555]
[1763448318049,0.2,136.06,136.05,76.33947555]
[1763448318447,0.2,136.06,136.05,13.33947555]
[1763448318664,0.86,136.06,136.05,13.33947555]
[1763448318860,0.2,136.06,136.05,20.68971443]
[1763448319463,0.85,136.06,136.04,18.12096]
[1763448319671,0.2,136.06,136.05,13.33947555]
[1763448320465,0.2,136.06,136.05,31.14854212]
[1763448320652,0.2,136.06,136.05,36.323566]
[1763448320972,0.2,136.06,136.05,99.323566]
[1763448321746,1e-08,136.07,136.06,9.78882769]
[1763448321946,1e-08,136.1,136.09,9.78882769]
[1763448322175,0.2,136.16,136.14,27.90978769]
[1763448322468,5.09,136.23,136.16,27.90978769]
[1763448322669,5.09,136.23,136.16,23.12830324]
[1763448322975,5.09,136.23,136.16,28.08830324]
[1763448323464,0.65,136.27,136.23,9.78882769]
[1763448323770,0.85,136.25,136.24,13.33947555]
[1763448324568,0.85,136.25,136.23,13.33947555]
[1763448324743,0.85,136.25,136.24,13.33947555]
[1763448326677,5.29,136.25,136.2,18.12096]
[1763448326867,0.65,136.24,136.2,18.12096]
[1763448327069,0.65,136.24,136.22,13.33947555]
[1763448327573,0.65,136.24,136.2,18.12096]
[1763448327574,0.65,136.24,136.2,13.33947555]
[1763448328486,13.33947555,136.22,136.17,13.33947555]
[1763448328691,0.65,136.24,136.17,0.52]
[1763448328985,4.64,136.25,136.2,9.78882769]
[1763448329149,4.64,136.25,136.16,9.78882769]
[1763448329350,0.65,136.24,136.18,13.33947555]
[1763448329655,0.65,136.24,136.21,13.33947555]
[1763448329958,13.98947555,136.24,136.19,13.33947555]
[1763448330166,13.98947555,136.24,136.19,31.46043555]
[1763448330347,0.65,136.23,136.19,31.46043555]
[1763448330553,13.33947555,136.22,136.12,7.346459]
[1763448330748,17.79947555,136.21,136.16,13.33947555]
[1763448330947,13.33947555,136.2,136.16,18.12096]
[1763448331148,13.33947555,136.2,136.12,17.13528669]
[1763448331149,13.98947555,136.2,136.14,13.33947555]
[1763448331486,13.98947555,136.2,136.11,13.33947555]
[1763448331487,13.33947555,136.16,136.11,13.33947555]
[1763448331783,17.79947555,136.15,136.1,13.33947555]
[1763448331999,4.46,136.15,136.11,13.33947555]
[1763448332156,5.11,136.15,136.11,13.33947555]
[1763448332361,4.46,136.15,136.13,13.33947555]
[1763448332756,5.11,136.15,136.13,13.33947555]
[1763448333258,4.46,136.15,136.13,13.33947555]
[1763448333659,0.65,136.14,136.12,13.33947555]
[1763448333965,0.65,136.14,136.11,23.12830324]
[1763448334277,4.46,136.15,136.12,13.33947555]
[1763448334478,0.65,136.14,136.11,13.33947555]
[1763448335000,0.65,136.14,136.07,9.78882769]
[1763448335282,0.65,136.14,136.03,36.75433631]
[1763448335283,13.33947555,136.13,136.08,13.33947555]
[1763448335464,13.98947555,136.14,136.09,13.33947555]
[1763448335671,0.65,136.13,136.09,13.33947555]
[1763448336072,11.80501073,136.15,136.11,13.33947555]
[1763448336073,5.11,136.15,136.11,13.33947555]
[1763448336376,0.65,136.14,136.11,13.33947555]
[1763448336559,4.46,136.15,136.13,13.33947555]
[1763448336760,4.46,136.15,136.12,13.33947555]
[1763448337075,0.65,136.14,136.11,13.33947555]
[1763448337259,0.65,136.14,136.12,13.33947555]
[1763448337674,0.65,136.14,136.11,13.33947555]
[1763448338374,0.65,136.14,136.1,18.12096]
[1763448338375,0.65,136.14,136.12,13.33947555]
[1763448338774,0.65,136.14,136.12,7.62800623]
[1763448338967,0.65,136.14,136.11,7.62800623]
[1763448339877,0.65,136.14,136.1,7.62800623]
[1763448340077,4.46,136.15,136.13,7.62800623]
[1763448340282,4.46,136.15,136.14,7.62800623]
[1763448340495,4.46,136.15,136.13,7.62800623]
[1763448340780,0.65,136.14,136.12,25.74896623]
[1763448343168,0.65,136.14,136.12,18.12096]
[1763448343757,0.65,136.14,136.07,9.78882769]
[1763448343758,8.27800623,136.14,136.1,18.12096]
[1763448343957,7.62800623,136.13,136.1,18.12096]
[1763448344187,8.29800623,136.12,136.07,7.62800623]
[1763448344388,4.44,136.11,136.07,7.62800623]
[1763448344560,0.67,136.1,136.07,7.62800623]
[1763448344762,5.11,136.11,136.08,7.62800623]
[1763448345274,5.11,136.11,136.06,88.47018761]
[1763448345459,5.11,136.11,136.08,7.62800623]
[1763448345662,4.44,136.11,136.1,7.62800623]
[1763448346580,4.44,136.11,136.1,25.74896623]
[1763448347690,0.67,136.17,136.14,18.12096]
[1763448347874,0.67,136.23,136.18,18.12096]
[1763448348184,4.44,136.23,136.21,7.62800623]
[1763448348395,4.44,136.23,136.22,7.62800623]
[1763448348562,0.67,136.22,136.2,18.12096]
[1763448348761,0.67,136.22,136.2,25.74896623]
[1763448348962,0.67,136.22,136.2,33.09108588]
[1763448349163,0.67,136.22,136.19,7.62800623]
[1763448349364,0.67,136.22,136.17,35.25338124]
[1763448349671,0.67,136.22,136.19,7.62800623]
[1763448349885,0.67,136.22,136.17,35.25338124]
[1763448350188,0.67,136.22,136.19,7.62800623]
[1763448350391,0.67,136.22,136.2,7.62800623]
[1763448350787,0.67,136.22,136.2,33.09095013]
[1763448350966,0.67,136.22,136.2,25.4629439]
[1763448351291,4.44,136.23,136.21,7.62800623]
[1763448351473,0.67,136.22,136.2,25.4629439]
[1763448351667,0.67,136.22,136.2,18.12096]
[1763448351869,0.67,136.22,136.2,25.74896623]
[1763448353182,0.67,136.22,136.2,33.09082048]
[1763448353381,4.44,136.23,136.21,7.62800623]
[1763448353681,4.44,136.23,136.22,25.74896623]
[1763448354503,4.44,136.23,136.22,18.12096]
[1763448354684,5.11,136.23,136.22,25.74896623]
[1763448354884,5.11,136.23,136.22,18.12096]
[1763448355186,4.44,136.23,136.22,25.74896623]
[1763448356804,5.11,136.23,136.22,18.12096]
[1763448357401,5.11,136.23,136.19,25.74896623]
[1763448357589,0.67,136.22,136.19,7.62800623]
[1763448358308,0.67,136.22,136.2,7.62800623]
[1763448358509,0.67,136.22,136.18,25.46378381]
[1763448358678,0.67,136.22,136.19,7.62800623]
[1763448359902,0.67,136.22,136.17,7.3435846]
[1763448360072,0.67,136.22,136.18,7.62800623]
[1763448360271,0.67,136.22,136.17,7.3435846]
[1763448360475,8.29800623,136.22,136.18,18.12096]
[1763448360683,8.29800623,136.22,136.15,9.78882769]
[1763448360684,7.62800623,136.21,136.16,7.62800623]
[1763448360902,0.67,136.21,136.17,7.62800623]
[1763448361114,5.11,136.23,136.19,7.62800623]
[1763448361408,5.11,136.23,136.18,18.12096]
[1763448361409,0.67,136.22,136.2,7.62800623]
[1763448361726,0.67,136.22,136.19,18.12096]
[1763448362512,4.44,136.23,136.21,7.62800623]
[1763448362678,4.44,136.23,136.22,7.62800623]
[1763448363226,0.2,136.25,136.22,7.62800623]
[1763448363395,0.2,136.25,136.24,25.74896623]
[1763448363595,4.64,136.25,136.24,25.74896623]
[1763448363790,5.31,136.25,136.24,25.74896623]
[1763448363994,4.64,136.25,136.24,25.74896623]
[1763448364520,5.31,136.25,136.24,18.12096]
[1763448364723,5.31,136.25,136.22,25.74896623]
[1763448364902,5.31,136.25,136.23,7.62800623]
[1763448365308,4.64,136.25,136.24,7.62800623]
[1763448366101,0.2,136.25,136.24,7.62800623]
[1763448366307,0.2,136.25,136.24,15.25601246]
[1763448367329,0.2,136.25,136.24,22.59600071]
[1763448367530,0.2,136.31,136.24,40.94597135]
[1763448367700,0.2,136.31,136.3,7.62800623]
[1763448367905,0.2,136.31,136.29,7.62800623]
[1763448368110,0.87,136.31,136.29,7.62800623]
[1763448369208,0.87,136.31,136.3,7.62800623]
[1763448370198,0.87,136.31,136.28,7.62800623]
[1763448370394,0.87,136.31,136.27,18.12096]
[1763448370395,0.67,136.3,136.27,7.62800623]
[1763448370610,4.44,136.29,136.27,7.62800623]
[1763448370995,4.44,136.29,136.28,7.62800623]
[1763448371427,4.44,136.29,136.25,7.62800623]
[1763448371428,0.67,136.28,136.25,7.62800623]
[1763448371635,0.67,136.28,136.23,18.12096]
[1763448371921,0.67,136.28,136.2,18.35532899]
[1763448371922,0.67,136.28,136.22,25.69370262]
[1763448372101,4.44,136.29,136.27,7.62800623]
[1763448372306,4.44,136.29,136.28,7.62800623]
[1763448372716,4.44,136.29,136.28,14.9658401]
[1763448373897,0.2,136.31,136.28,14.9658401]
[1763448374100,0.2,136.33,136.32,27.90978769]
[1763448374295,0.2,136.36,136.32,27.90978769]
[1763448374296,0.2,136.36,136.32,43.16580015]
[1763448374529,0.2,136.38,136.36,18.12096]
[1763448374728,0.2,136.38,136.37,24.74982504]
[1763448376731,0.2,136.38,136.37,42.87078504]
[1763448377528,0.16,136.43,136.41,18.12096]
[1763448377707,0.16,136.43,136.42,7.62800623]
[1763448378051,0.2,136.46,136.42,7.62800623]
[1763448378324,0.72,136.45,136.41,18.12096]
[1763448378528,0.72,136.45,136.44,7.62800623]
[1763448380331,0.72,136.45,136.41,18.12096]
[1763448380332,0.72,136.45,136.43,7.62800623]
[1763448380502,0.72,136.45,136.44,7.62800623]
[1763448380702,0.72,136.45,136.43,7.62800623]
[1763448380936,0.72,136.45,136.42,7.62800623]
[1763448381319,0.72,136.45,136.41,18.12096]
[1763448381510,0.72,136.45,136.44,7.62800623]
[1763448382137,8.34800623,136.45,136.32,70.62800623]
[1763448382338,7.62800623,136.44,136.39,7.62800623]
[1763448382628,7.62800623,136.44,136.35,7.62800623]
[1763448382629,7.62800623,136.4,136.35,7.62800623]
[1763448382832,5.16,136.39,136.35,7.62800623]
[1763448383031,5.16,136.39,136.36,7.62800623]
[1763448383334,5.16,136.39,136.33,25.45601828]
[1763448383540,5.16,136.39,136.35,7.62800623]
[1763448383541,0.72,136.38,136.35,7.62800623]
[1763448383838,0.72,136.38,136.33,18.12096]
[1763448384015,0.72,136.38,136.34,7.62800623]
[1763448384220,0.72,136.38,136.32,7.33556436]
[1763448384439,0.72,136.38,136.31,25.45704788]
[1763448384745,0.72,136.38,136.34,7.62800623]
[1763448385043,0.72,136.38,136.37,7.62800623]
[1763448385219,0.72,136.38,136.34,25.74896623]
[1763448385416,0.72,136.38,136.36,7.62800623]
[1763448385648,0.72,136.38,136.37,7.62800623]
[1763448386217,0.72,136.38,136.36,7.62800623]
[1763448386629,0.72,136.38,136.34,18.12096]
[1763448386940,0.72,136.38,136.35,7.62800623]
[1763448387113,0.72,136.38,136.34,7.62800623]
[1763448387511,15.6804749,136.38,136.34,7.62800623]
[1763448387736,15.6804749,136.38,136.32,18.12096]
[1763448387737,7.62800623,136.37,136.32,7.62800623]
[1763448387941,8.34800623,136.37,136.32,7.62800623]
[1763448388124,5.16,136.37,136.36,7.62800623]
[1763448389021,0.72,136.42,136.39,18.12096]
[1763448389335,0.2,136.49,136.45,27.90978769]
[1763448389537,0.2,136.49,136.48,18.12096]
[1763448389840,0.2,136.49,136.48,25.74896623]
[1763448390038,0.92,136.49,136.45,9.78882769]
[1763448390240,0.92,136.49,136.48,7.62800623]
[1763448390636,0.2,136.49,136.48,7.62800623]
[1763448390842,0.2,136.49,136.48,25.04484015]
[1763448391052,0.2,136.49,136.48,35.53779392]
[1763448391236,0.2,136.49,136.48,50.49288104]
[1763448391634,0.1,136.5,136.49,9.78882769]
[1763448391939,0.92,136.52,136.51,18.12096]
[1763448392245,0.92,136.52,136.51,7.62800623]
[1763448393114,0.92,136.52,136.5,7.62800623]
[1763448393319,5.16,136.51,136.48,7.62800623]
[1763448393515,5.16,136.51,136.46,18.12096]
[1763448393718,0.72,136.5,136.46,18.12096]
[1763448394731,0.72,136.5,136.41,9.78882769]
[1763448394935,8.34800623,136.5,136.46,7.62800623]
[1763448395133,0.72,136.49,136.46,7.62800623]
[1763448395737,0.72,136.49,136.47,7.62800623]
[1763448395942,0.72,136.49,136.46,7.62800623]
[1763448396146,0.72,136.49,136.44,18.12096]
[1763448396452,0.72,136.49,136.46,7.62800623]
[1763448396947,0.72,136.49,136.48,7.62800623]
[1763448397133,4.44,136.51,136.48,7.62800623]
[1763448397332,4.44,136.51,136.5,7.62800623]
[1763448397533,5.16,136.51,136.5,7.62800623]
[1763448398734,4.44,136.51,136.5,7.62800623]
[1763448398939,4.64,136.52,136.5,13.20566246]
[1763448399152,4.64,136.52,136.51,13.20566246]
[1763448399656,5.36,136.52,136.51,13.20566246]
[1763448400430,5.36,136.52,136.48,18.12096]
[1763448400630,4.64,136.52,136.51,13.20566246]
[1763448401234,4.64,136.52,136.49,7.32602754]
[1763448401431,4.64,136.52,136.51,13.20566246]
[1763448402443,4.64,136.52,136.51,31.32662246]
[1763448402767,5.33,136.52,136.51,13.20566246]
[1763448403264,4.64,136.52,136.51,13.20566246]
[1763448403834,5.33,136.52,136.5,13.20566246]
[1763448404033,0.69,136.51,136.5,13.20566246]
[1763448404452,0.69,136.51,136.47,25.44857779]
[1763448404758,0.69,136.51,136.49,13.20566246]
[1763448406457,0.69,136.51,136.47,7.32756872]
[1763448406761,0.69,136.51,136.49,13.20566246]
[1763448407555,0.69,136.51,136.5,13.20566246]
[1763448407862,4.64,136.52,136.5,13.20566246]
[1763448408080,4.64,136.52,136.51,13.20566246]
[1763448410172,4.64,136.52,136.51,18.12096]
[1763448410468,4.64,136.52,136.51,13.20566246]
[1763448410671,4.64,136.52,136.51,31.32662246]
[1763448411557,4.64,136.52,136.51,38.65209312]
[1763448413188,4.64,136.52,136.51,18.12096]
[1763448413477,5.33,136.52,136.51,31.32662246]
[1763448414348,5.33,136.52,136.49,13.20566246]
[1763448414547,0.69,136.51,136.49,13.20566246]
[1763448416757,0.69,136.51,136.5,13.20566246]
[1763448417077,0.2,136.52,136.5,26.41132492]
[1763448417260,0.2,136.52,136.51,13.20566246]
[1763448417584,0.2,136.52,136.51,48.44092081]
[1763448417765,0.2,136.53,136.51,48.44092081]
[1763448417766,0.2,136.53,136.52,22.99449015]
[1763448419256,4.42,136.57,136.55,18.12096]
[1763448419458,4.42,136.57,136.56,13.20566246]
[1763448419652,4.42,136.57,136.56,20.52845097]
[1763448419847,0.69,136.61,136.59,18.12096]
[1763448420054,0.69,136.61,136.6,13.20566246]
[1763448420277,5.11,136.61,136.6,13.20566246]
[1763448420852,5.11,136.61,136.56,25.44374851]
[1763448421170,0.69,136.6,136.58,13.20566246]
[1763448422660,0.69,136.6,136.56,13.20566246]
[1763448423066,13.20566246,136.58,136.51,7.32547066]
[1763448423267,17.62566246,136.57,136.52,13.20566246]
[1763448423594,13.20566246,136.56,136.51,13.20566246]
[1763448423786,13.89566246,136.56,136.51,13.20566246]
[1763448424089,12.89566246,136.56,136.51,20.53095662]
[1763448424584,13.20566246,136.56,136.51,13.20566246]
[1763448424885,13.20566246,136.53,136.49,13.20566246]
[1763448425185,4.42,136.52,136.5,18.12096]
[1763448425378,4.42,136.51,136.48,0.69]
[1763448425551,4.42,136.51,136.47,7.32761779]
[1763448425870,4.42,136.51,136.48,18.12096]
[1763448426053,0.69,136.5,136.48,18.12096]
[1763448426254,0.69,136.5,136.48,31.32662246]
[1763448426760,0.69,136.5,136.48,13.20566246]
[1763448427072,0.69,136.5,136.47,7.32740778]
[1763448427073,0.69,136.5,136.47,13.20566246]
[1763448427268,0.69,136.5,136.45,7.32864488]
[1763448427269,0.69,136.5,136.46,13.20566246]
[1763448428987,0.69,136.5,136.48,13.20566246]
[1763448430973,0.69,136.5,136.47,7.32746482]
[1763448431178,0.69,136.5,136.48,13.20566246]
[1763448431381,0.69,136.58,136.53,18.12096]
[1763448431684,4.42,136.57,136.55,13.20566246]
[1763448432059,0.69,136.56,136.54,13.20566246]
[1763448432261,0.69,136.56,136.55,13.20566246]
[1763448432891,0.69,136.56,136.52,7.32493407]
[1763448433189,0.69,136.56,136.55,13.20566246]
[1763448434200,0.69,136.56,136.54,13.20566246]
[1763448434703,4.42,136.57,136.54,13.20566246]
[1763448434873,5.11,136.57,136.54,13.20566246]
[1763448435204,0.69,136.56,136.53,13.20566246]
[1763448435366,0.69,136.56,136.52,18.12096]
[1763448435367,13.89566246,136.56,136.51,13.20566246]
[1763448435573,13.20566246,136.53,136.48,13.20566246]
[1763448435875,4.42,136.52,136.49,13.20566246]
[1763448436089,0.69,136.51,136.49,13.20566246]
[1763448436696,0.69,136.51,136.47,13.20566246]
[1763448437994,0.69,136.51,136.44,7.32902908]
[1763448437995,21.22124518,136.51,136.44,7.32902908]
[1763448438170,13.89566246,136.51,136.47,13.20566246]
[1763448438369,11.74504895,136.52,136.43,24.87551335]
[1763448438370,0.69,136.5,136.48,13.20566246]
[1763448438597,4.42,136.49,136.48,13.20566246]
[1763448439084,5.13,136.49,136.48,13.20566246]
[1763448439278,5.13,136.49,136.47,13.20566246]
[1763448440398,0.71,136.48,136.47,13.20566246]
[1763448441202,0.71,136.48,136.45,63.0]
[1763448441405,0.71,136.48,136.46,13.20566246]
[1763448442900,0.71,136.48,136.45,76.20566246]
[1763448443221,13.20566246,136.47,136.42,13.20566246]
[1763448443507,4.42,136.46,136.42,13.20566246]
[1763448443674,0.71,136.45,136.42,13.20566246]
[1763448443878,13.91566246,136.45,136.4,13.20566246]
[1763448444077,13.20566246,136.44,136.39,13.20566246]
[1763448444280,4.42,136.43,136.39,13.20566246]
[1763448444499,5.13,136.43,136.39,13.20566246]
[1763448444705,0.71,136.42,136.39,13.20566246]
[1763448445402,4.42,136.43,136.41,13.20566246]
[1763448445614,0.71,136.42,136.39,18.12096]
[1763448445798,0.71,136.42,136.37,34.18577077]
[1763448445799,0.71,136.42,136.4,13.20566246]
[1763448447107,4.42,136.43,136.4,13.20566246]
[1763448447306,4.42,136.44,136.42,31.32662246]
[1763448447606,28.10306613,136.51,136.42,18.12096]
[1763448447607,4.42,136.43,136.42,18.12096]
[1763448448379,4.42,136.43,136.39,26.34170539]
[1763448448591,4.42,136.43,136.42,13.20566246]
[1763448448794,4.42,136.43,136.42,20.53596593]
[1763448451209,4.42,136.43,136.42,13.20566246]
[1763448451596,4.42,136.43,136.42,20.53596593]
[1763448452309,4.42,136.43,136.42,7.33030347]
[1763448452517,4.42,136.43,136.42,20.53596593]
[1763448454613,4.42,136.43,136.42,83.53596593]
[1763448455111,4.42,136.43,136.42,84.21596593]
[1763448456883,0.71,136.48,136.42,84.21596593]
[1763448457089,0.71,136.48,136.47,13.20566246]